fUST/lending_fUST_20240513
["ID","MTS","AMOUNT","RATE_DAILY","PERIOD"]
[326925495,1715595047055,-435.13543186,0.0002091,2]
[326925496,1715595047063,-500.0,0.0002091,2]
[326925497,1715595047072,-215.90743749,0.0002091,2]
[326925498,1715595047081,-500.0,0.0002091,2]
[326925499,1715595047090,-500.0,0.0002091,2]
[326925500,1715595047099,-500.0,0.0002091,2]
[326925501,1715595047108,-500.0,0.0002091,2]
[326925502,1715595047117,-301.34817821,0.0002091,2]
[326925503,1715595051880,2769.42583205,9.999e-05,2]
[326925504,1715595051904,106.1482266,9.999e-05,2]
[326925528,1715595191478,154.75239617,9.999e-05,2]
[326925538,1715595393140,500.79,0.000121,2]
[326925539,1715595500659,-4787.0,0.00019176,2]
[326925540,1715595538535,-929.0,0.00019176,2]
[326925541,1715595590171,-1200.0,0.00019175,2]
[326925542,1715595605461,2730.0,0.0001702,2]
[326925559,1715595651402,-630.0,0.00019175,2]
[326925561,1715595680114,-167.0,0.00019175,2]
[326925562,1715595851017,273.37336231,9.9e-05,2]
[326925563,1715595905539,295.49682355,0.00025,60]
[326925564,1715595974037,701.91934143,9.999e-05,2]
[326925565,1715596089366,178.40380257,9.999e-05,2]
[326925566,1715596140600,817.41685874,9.999e-05,2]
[326925594,1715596233799,-3059.42572864,0.00018218,2]
[326925596,1715596233808,-1882.24266658,0.00018219,2]
[326925598,1715596233818,-1883.78526322,0.00018283,2]
[326925599,1715596233828,-575.453485,0.00018285,2]
[326925600,1715596233837,-234.00916476,0.00018287,2]
[326925601,1715596233847,-226.1804014,0.00018287,2]
[326925602,1715596233857,-157.62920895,0.00018287,2]
[326925603,1715596233867,-284.74998966,0.00018287,2]
[326925604,1715596233880,-240.41664244,0.00018287,2]
[326925605,1715596233890,-947.63448558,0.00018287,2]
[326925606,1715596233901,-818.84836064,0.00018287,2]
[326925607,1715596233910,-700.50410475,0.00018288,2]
[326925608,1715596233922,-12731.50516003,0.00018288,2]
[326925609,1715596233932,-24900.0,0.00018289,2]
[326925610,1715596233942,-250.0,0.00018319,2]
[326925611,1715596233951,-150.0,0.000189,2]
[326925612,1715596233962,-179.209643,0.00019178,2]
[326925613,1715596233972,-176.45933,0.00019183,2]
[326925614,1715596233981,-156.3717752,0.00019264,2]
[326925615,1715596233991,-154.90718629,0.00019363,2]
[326925616,1715596234000,-7221.64759886,0.00019363,2]
[326925617,1715596234010,-2495.40291208,0.00019364,2]
[326925618,1715596234020,-1901.99288835,0.00019364,2]
[326925619,1715596234030,-161.20768773,0.00019862,2]
[326925620,1715596234039,-931.72478894,0.00019864,2]
[326925621,1715596234049,-731.69934802,0.00019898,2]
[326925622,1715596234061,-364.17992351,0.00019898,2]
[326925623,1715596234069,-156.3717752,0.00019945,2]
[326925624,1715596234078,-500.0,0.00019999,2]
[326925625,1715596234094,-201.94785622,0.00019999,2]
[326925626,1715596234104,-200.5878234,0.00019999,2]
[326925627,1715596234113,-500.0,0.00019999,2]
[326925628,1715596234123,-500.0,0.00019999,2]
[326925629,1715596234134,-456.66845374,0.00019999,2]
[326925630,1715596234144,-500.0,0.00019999,2]
[326925631,1715596234156,-500.0,0.00019999,2]
[326925632,1715596234167,-500.0,0.00019999,2]
[326925633,1715596234177,-269.59690481,0.00019999,2]
[326925634,1715596234187,-500.0,0.00019999,2]
[326925635,1715596234196,-500.0,0.00019999,2]
[326925636,1715596234205,-500.0,0.00019999,2]
[326925637,1715596234215,-500.0,0.00019999,2]
[326925638,1715596234227,-500.0,0.00019999,2]
[326925639,1715596234238,-500.0,0.00019999,2]
[326925640,1715596234249,-394.12823454,0.00019999,2]
[326925641,1715596234258,-457.1473563,0.00019999,2]
[326925642,1715596234272,-42.8526437,0.00019999,2]
[326925643,1715596234381,-500.0,0.00019999,2]
[326925644,1715596234395,-500.0,0.00019999,2]
[326925645,1715596234404,-500.0,0.00019999,2]
[326925646,1715596234414,-500.0,0.00019999,2]
[326925647,1715596234423,-500.0,0.00019999,2]
[326925648,1715596234432,-500.0,0.00019999,2]
[326925649,1715596234441,-500.0,0.00019999,2]
[326925650,1715596234450,-342.60075137,0.00019999,2]
[326925651,1715596234461,-157.39924863,0.00019999,2]
[326925652,1715596234470,-500.0,0.00019999,2]
[326925653,1715596234479,-500.0,0.00019999,2]
[326925654,1715596234488,-500.0,0.00019999,2]
[326925655,1715596234497,-500.0,0.00019999,2]
[326925656,1715596234505,-500.0,0.00019999,2]
[326925657,1715596234514,-500.0,0.00019999,2]
[326925658,1715596234523,-250.0,0.00019999,2]
[326925659,1715596234532,-395.47640152,0.00019999,2]
[326925660,1715596234542,-395.47640152,0.00019999,2]
[326925661,1715596234551,-500.0,0.00019999,2]
[326925662,1715596234561,-395.47640152,0.00019999,2]
[326925663,1715596234570,-500.0,0.00019999,2]
[326925664,1715596234579,-400.1099687,0.00019999,2]
[326925665,1715596234590,-500.0,0.00019999,2]
[326925666,1715596234599,-171.25022464,0.00019999,2]
[326925828,1715596241049,-150.0,0.000189,2]
[326925829,1715596241058,-150.0059779,0.00019997,2]
[326925922,1715596248236,-349.9940221,0.00019997,2]
[326925923,1715596248246,-59.94218808,0.00019997,2]
[326925929,1715596373349,-200104.6199161,0.00044456,120]
[326925930,1715596373371,-399895.3800839,0.00044456,30]
[326925931,1715596379679,-2717.41053113,0.0003,10]
[326925932,1715596379706,-525.71381416,0.00033312,7]
[326925933,1715596379733,-18291.88599406,0.00034,15]
[326925934,1715596379758,-525.71381416,0.00034228,7]
[326925935,1715596379785,-525.71381416,0.00034329,7]
[326925936,1715596379813,-525.71381416,0.00034941,7]
[326925937,1715596379836,-52414.4062723,0.00035,30]
[326925938,1715596379861,-397.29031706,0.00035,7]
[326925939,1715596379885,-525.71381416,0.0003508,7]
[326925940,1715596379908,-525.71381416,0.0003528,7]
[326925941,1715596379930,-525.71381416,0.00035393,7]
[326925942,1715596379953,-941.67179657,0.000356,30]
[326925943,1715596379976,-552.516535,0.00035616,120]
[326925944,1715596379998,-156.8,0.00036534,7]
[326925945,1715596380024,-1428.0759444,0.00038,30]
[326925946,1715596380046,-281.0,0.00038,12]
[326925947,1715596380070,-151.0,0.00038,17]
[326925948,1715596380092,-525.71381416,0.00038098,7]
[326925949,1715596380115,-500.0,0.00038356,15]
[326925950,1715596380142,-500.0,0.00038356,15]
[326925951,1715596380163,-500.0,0.00038356,15]
[326925952,1715596380187,-500.0,0.00038356,15]
[326925953,1715596380210,-500.0,0.00038356,15]
[326925954,1715596380233,-630.12630568,0.00038356,15]
[326925955,1715596380255,-500.0,0.00038356,15]
[326925956,1715596380277,-156.8,0.00038827,7]
[326925957,1715596380300,-2613.35906923,0.000389,30]
[326925958,1715596380323,-525.71381416,0.00038988,7]
[326925959,1715596380346,-525.71381416,0.00039295,7]
[326925960,1715596380368,-525.71381416,0.00039305,7]
[326925961,1715596380391,-525.71381416,0.00039436,7]
[326925962,1715596380413,-525.71381416,0.00039617,7]
[326925963,1715596380437,-525.71381416,0.00039744,7]
[326925964,1715596380460,-1045.6347658,0.000399,109]
[326925965,1715596380482,-403.55519046,0.000399,72]
[326925966,1715596380504,-8000.0,0.0004,30]
[326925967,1715596380526,-26313.15971814,0.0004,120]
[326925968,1715596380548,-2545.11460212,0.0004,120]
[326925969,1715596380570,-387.71426355,0.0004,120]
[326925970,1715596380592,-2459.04407069,0.0004,15]
[326925971,1715596380615,-197.24398457,0.0004,120]
[326925972,1715596380639,-525.71381416,0.00040627,30]
[326925973,1715596380665,-525.71381416,0.00040846,30]
[326925974,1715596380687,-1000.0,0.00041,20]
[326925975,1715596380712,-525.71381416,0.00041114,30]
[326925976,1715596380737,-156.8,0.00041119,30]
[326925977,1715596380761,-603.03514377,0.00041496,7]
[326925978,1715596380783,-552.516535,0.00041553,120]
[326925979,1715596380807,-359.68260999,0.000419,39]
[326925980,1715596380829,-334.17122722,0.000419,39]
[326925981,1715596380851,-334.17122713,0.000419,39]
[326925982,1715596380873,-334.17122713,0.000419,39]
[326925983,1715596380894,-334.17122713,0.000419,39]
[326925984,1715596380916,-334.17122713,0.000419,39]
[326925985,1715596380940,-334.17122713,0.000419,39]
[326925986,1715596380965,-334.17122713,0.000419,39]
[326925987,1715596380987,-334.17122713,0.000419,39]
[326925988,1715596381010,-334.17122713,0.000419,39]
[326925989,1715596381133,-334.17122713,0.000419,39]
[326925990,1715596381156,-32199.87813329,0.00042,120]
[326925991,1715596381181,-1000.0,0.00042,25]
[326925992,1715596381206,-609.0,0.00042,120]
[326925993,1715596381229,-191.58166,0.00042,7]
[326925994,1715596381251,-191.58166,0.00042,7]
[326925995,1715596381277,-151.0,0.00042,7]
[326925996,1715596381300,-151.0,0.00042,7]
[326925997,1715596381321,-151.0,0.00042,7]
[326925998,1715596381343,-233.404086,0.00042,7]
[326925999,1715596381364,-233.404086,0.00042,7]
[326926000,1715596381387,-753.600941,0.00042,7]
[326926001,1715596381411,-753.600941,0.00042,7]
[326926002,1715596381435,-293.616752,0.00042,7]
[326926003,1715596381459,-293.616752,0.00042,7]
[326926004,1715596381480,-367.794041,0.00042,7]
[326926005,1715596381503,-367.794041,0.00042,7]
[326926006,1715596381529,-525.71381416,0.00042245,30]
[326926007,1715596381553,-1947.73737369,0.000425,30]
[326926008,1715596381578,-1206.07028754,0.00042547,30]
[326926009,1715596381601,-525.71381416,0.00042672,30]
[326926010,1715596381624,-500.0,0.000432,7]
[326926011,1715596381648,-10670.59807216,0.000432,120]
[326926012,1715596381672,-397.27020162,0.00043287,14]
[326926013,1715596381694,-156.8,0.00043411,30]
[326926014,1715596381719,-291.18485261,0.00044,120]
[326926015,1715596381743,-525.71381416,0.00044016,30]
[326926016,1715596381766,-379.8963885,0.0004423,30]
[326926017,1715596381790,-391.0,0.00044413,35]
[326926018,1715596381811,-630.0,0.00044422,35]
[326926019,1715596381836,-391.0,0.00044423,35]
[326926020,1715596381858,-191.77,0.00044423,35]
[326926021,1715596381882,-152.52,0.00044432,35]
[326926022,1715596381905,-630.0,0.00044432,35]
[326926023,1715596381927,-155.31,0.00044432,35]
[326926024,1715596381953,-391.0,0.00044433,35]
[326926025,1715596381975,-160.17,0.00044433,35]
[326926026,1715596381998,-150.5,0.00044442,35]
[326926027,1715596382022,-630.0,0.00044442,35]
[326926028,1715596382045,-150.5,0.00044442,35]
[326926029,1715596382067,-191.58166,0.00044444,7]
[326926030,1715596382091,-191.58166,0.00044444,7]
[326926031,1715596382117,-151.0,0.00044444,7]
[326926032,1715596382145,-151.0,0.00044444,7]
[326926033,1715596382170,-200.494054,0.00044444,7]
[326926034,1715596382194,-233.404086,0.00044444,7]
[326926035,1715596382220,-233.404086,0.00044444,7]
[326926036,1715596382245,-753.600941,0.00044444,7]
[326926037,1715596382269,-753.600941,0.00044444,7]
[326926038,1715596382292,-293.616752,0.00044444,7]
[326926039,1715596382316,-293.616752,0.00044444,7]
[326926040,1715596382339,-367.794041,0.00044444,7]
[326926041,1715596382362,-367.794041,0.00044444,7]
[326926042,1715596382385,-191.58166,0.00044452,7]
[326926043,1715596382408,-191.58166,0.00044452,7]
[326926044,1715596382431,-191.58166,0.00044452,7]
[326926045,1715596382456,-191.58166,0.00044452,7]
[326926046,1715596382479,-191.58166,0.00044452,7]
[326926047,1715596382500,-191.58166,0.00044452,7]
[326926048,1715596382523,-191.58166,0.00044452,7]
[326926049,1715596382544,-191.581653,0.00044452,7]
[326926050,1715596382568,-151.0,0.00044452,7]
[326926051,1715596382590,-151.0,0.00044452,7]
[326926052,1715596382613,-268.950124,0.00044452,7]
[326926053,1715596382636,-151.0,0.00044452,7]
[326926054,1715596382658,-151.0,0.00044452,7]
[326926055,1715596382681,-151.0,0.00044452,7]
[326926056,1715596382708,-193.14009,0.00044452,7]
[326926057,1715596382731,-166.49,0.00044455,7]
[326926058,1715596382753,-166.49,0.00044455,7]
[326926059,1715596382775,-166.49,0.00044455,7]
[326926060,1715596382797,-166.49,0.00044455,7]
[326926061,1715596382820,-166.49,0.00044455,7]
[326926062,1715596382842,-166.49,0.00044455,7]
[326926063,1715596382864,-166.49,0.00044455,7]
[326926064,1715596382887,-233.404086,0.00044456,7]
[326926065,1715596382910,-233.404086,0.00044456,7]
[326926066,1715596382932,-233.404086,0.00044456,7]
[326926067,1715596383039,-233.404086,0.00044456,7]
[326926068,1715596383065,-233.404086,0.00044456,7]
[326926069,1715596383088,-233.404086,0.00044456,7]
[326926070,1715596383111,-233.404086,0.00044456,7]
[326926071,1715596383136,-233.404094,0.00044456,7]
[326926072,1715596383161,-753.600941,0.00044456,7]
[326926073,1715596383185,-753.600941,0.00044456,7]
[326926074,1715596383209,-753.600941,0.00044456,7]
[326926075,1715596383231,-753.600941,0.00044456,7]
[326926076,1715596383256,-753.600941,0.00044456,7]
[326926077,1715596383280,-753.600941,0.00044456,7]
[326926078,1715596383304,-753.600941,0.00044456,7]
[326926079,1715596383327,-753.60094789,0.00044456,7]
[326926080,1715596383351,-293.616752,0.00044456,7]
[326926081,1715596383375,-293.616752,0.00044456,7]
[326926082,1715596383400,-293.616752,0.00044456,7]
[326926083,1715596383423,-293.616752,0.00044456,7]
[326926084,1715596383445,-293.616752,0.00044456,7]
[326926085,1715596383471,-293.616752,0.00044456,7]
[326926086,1715596383494,-293.616752,0.00044456,7]
[326926087,1715596383517,-293.616756,0.00044456,7]
[326926088,1715596383542,-367.794041,0.00044456,7]
[326926089,1715596383565,-367.794041,0.00044456,7]
[326926090,1715596383587,-367.794041,0.00044456,7]
[326926091,1715596383609,-367.794041,0.00044456,7]
[326926092,1715596383632,-367.794041,0.00044456,7]
[326926093,1715596383655,-367.794041,0.00044456,7]
[326926094,1715596383677,-367.794041,0.00044456,7]
[326926095,1715596383700,-367.794037,0.00044456,7]
[326926096,1715596383725,-525.71381416,0.00044554,30]
[326926097,1715596383747,-2000.0,0.000446,30]
[326926098,1715596383769,-562.0,0.000448,21]
[326926099,1715596383791,-562.0,0.000448,21]
[326926100,1715596383813,-525.71381416,0.00044815,30]
[326926101,1715596383835,-179367.88287357,0.000449,120]
[326926102,1715596383858,-525.71381416,0.00044911,30]
[326926103,1715596383881,-339.7637,0.00045,30]
[326926104,1715596383903,-525.71381416,0.00045025,30]
[326926105,1715596383926,-156.8,0.00045704,30]
[326926106,1715596383948,-525.71381416,0.00046051,30]
[326926107,1715596383983,-350.53609262,0.000465,45]
[326926108,1715596384015,-525.71381416,0.00046535,30]
[326926109,1715596384043,-193094.71289944,0.000467,30]
[326926110,1715596387206,-578343.73658149,0.00044479,30]
[326926111,1715596387234,-21656.26341851,0.00044479,30]
[326926112,1715596391983,-21343.73658149,0.00044479,30]
[326926113,1715596392009,-3558.0,0.00044479,30]
[326926114,1715596395413,-273.0,0.00044426,35]
[326926115,1715596395436,-273.0,0.00044436,35]
[326926116,1715596395460,-160.17,0.00044446,35]
[326926117,1715596395484,-273.0,0.00044446,35]
[326926118,1715596395508,-252364.35587006,0.000467,30]
[326926119,1715596395533,-525.71381416,0.00046797,30]
[326926120,1715596395556,-525.71381416,0.00046873,30]
[326926121,1715596395580,-12000.35018045,0.00047,11]
[326926122,1715596395602,-525.71381416,0.0004723,30]
[326926123,1715596395625,-552.516535,0.00047489,120]
[326926124,1715596395649,-525.71381427,0.00047714,30]
[326926125,1715596395672,-434.0,0.00047777,120]
[326926126,1715596395693,-1106.0,0.000479,30]
[326926127,1715596395717,-562.0,0.000479,25]
[326926128,1715596395741,-527.0,0.000479,25]
[326926129,1715596395765,-156.8,0.00047996,60]
[326926130,1715596395789,-940.64646178,0.00048,120]
[326926131,1715596395812,-557.0,0.00048,30]
[326926132,1715596395834,-144186.90915153,0.00048,120]
[326926133,1715596395857,-6537.92248162,0.00048,120]
[326926134,1715596395881,-115553.72874575,0.00048398,8]
[326926135,1715596395903,-10709.08892468,0.00048398,8]
[326926136,1715596395926,-200.0,0.00048439,120]
[326926137,1715596395948,-500.0,0.00049315,31]
[326926138,1715596395972,-500.0,0.00049315,31]
[326926139,1715596395994,-500.0,0.00049315,31]
[326926140,1715596396016,-500.0,0.00049315,31]
[326926141,1715596396038,-500.0,0.00049315,31]
[326926142,1715596396060,-500.0,0.00049315,31]
[326926143,1715596396081,-500.0,0.00049315,31]
[326926144,1715596396103,-500.0,0.00049315,31]
[326926145,1715596396124,-500.0,0.00049315,31]
[326926146,1715596396149,-500.0,0.00049315,31]
[326926147,1715596396176,-500.0,0.00049315,31]
[326926148,1715596396198,-500.0,0.00049315,31]
[326926149,1715596396222,-342.76051317,0.00049315,31]
[326926150,1715596396244,-500.0,0.00049315,31]
[326926151,1715596396267,-500.0,0.00049315,31]
[326926152,1715596396289,-151.0,0.00049315,7]
[326926153,1715596396312,-151.0,0.00049315,7]
[326926154,1715596396347,-151.0,0.00049315,7]
[326926155,1715596396372,-151.0,0.00049315,7]
[326926156,1715596396396,-151.0,0.00049315,7]
[326926157,1715596396420,-151.0,0.00049315,7]
[326926158,1715596396444,-151.0,0.00049315,7]
[326926159,1715596396470,-151.0,0.00049315,7]
[326926160,1715596396495,-151.0,0.00049315,7]
[326926161,1715596396519,-159.469878,0.00049315,7]
[326926162,1715596396542,-5000.0,0.0005,45]
[326926163,1715596396566,-156.42334941,0.0005,30]
[326926164,1715596396589,-151.0,0.0005,120]
[326926165,1715596396613,-186.94348728,0.0005,30]
[326926166,1715596396636,-151.0,0.0005,30]
[326926167,1715596396659,-200.0,0.0005,120]
[326926168,1715596396682,-498.999999,0.0005,120]
[326926169,1715596396706,-312.43812069,0.0005,7]
[326926170,1715596396730,-558.51403464,0.000504,30]
[326926171,1715596396756,-5000.0,0.00053,120]
[326926172,1715596396780,-200.0,0.00053079,120]
[326926173,1715596396804,-552.516535,0.00053425,120]
[326926174,1715596396828,-812.0,0.000537,32]
[326926175,1715596396852,-812.0,0.000537,32]
[326926176,1715596396876,-2000.0,0.000547,33]
[326926177,1715596396899,-2000.0,0.000547,33]
[326926178,1715596396922,-507.3100152,0.00054794,120]
[326926179,1715596396945,-504.45859065,0.00054794,120]
[326926180,1715596396970,-501.6392982,0.00054794,120]
[326926181,1715596396992,-503.96710098,0.00054794,120]
[326926182,1715596397016,-520.18876156,0.00054794,120]
[326926183,1715596397039,-501.39493985,0.00054794,120]
[326926184,1715596397061,-502.63692791,0.00054794,120]
[326926185,1715596397084,-503.10888521,0.00054794,7]
[326926186,1715596397109,-504.72646831,0.00054794,120]
[326926187,1715596397135,-503.43360036,0.00054794,120]
[326926188,1715596397159,-501.27978027,0.00054794,120]
[326926189,1715596397184,-501.45830359,0.00054794,120]
[326926190,1715596397208,-505.38051165,0.00054794,120]
[326926191,1715596397234,-502.50805138,0.00054794,120]
[326926192,1715596397257,-512.34331016,0.00054794,120]
[326926193,1715596397280,-500.76261501,0.00054794,120]
[326926194,1715596397306,-500.0,0.00054794,30]
[326926195,1715596397330,-509.57891917,0.00054794,120]
[326926196,1715596397354,-505.80019402,0.00054794,120]
[326926197,1715596397378,-1004.03108977,0.00054794,120]
[326926198,1715596397401,-500.0,0.00054794,120]
[326926199,1715596397424,-501.41329685,0.00054794,120]
[326926200,1715596397447,-501.88671713,0.00054794,120]
[326926201,1715596397471,-502.10141497,0.00054794,120]
[326926202,1715596397496,-510.11454151,0.00054794,120]
[326926203,1715596397519,-255.87452707,0.00054794,120]
[326926204,1715596397675,-501.67457788,0.00054794,120]
[326926205,1715596397702,-500.0,0.00054794,120]
[326926206,1715596397729,-503.82234953,0.00054794,120]
[326926207,1715596397755,-500.0,0.00054794,120]
[326926208,1715596397781,-500.0,0.00054794,120]
[326926209,1715596397807,-500.0,0.00054794,120]
[326926210,1715596397831,-505.73457453,0.00054794,120]
[326926211,1715596397855,-500.0,0.00054794,120]
[326926212,1715596397878,-295.57865284,0.00054794,120]
[326926213,1715596397900,-502.21016183,0.00054794,120]
[326926214,1715596397923,-500.0,0.00054794,120]
[326926215,1715596397946,-502.49284488,0.00054794,120]
[326926216,1715596397972,-511.31048121,0.00054794,120]
[326926217,1715596397994,-501.89726147,0.00054794,120]
[326926218,1715596398016,-500.0,0.00054794,120]
[326926219,1715596398038,-500.0,0.00054794,120]
[326926220,1715596398060,-500.0,0.00054794,120]
[326926221,1715596398083,-510.37350659,0.00054794,120]
[326926222,1715596398107,-502.94592828,0.00054794,120]
[326926223,1715596398133,-371.15227537,0.00054794,120]
[326926224,1715596404251,-132.93365129,0.00054794,120]
[326926225,1715596404275,-500.0,0.00054794,120]
[326926226,1715596404299,-608.10858306,0.00054794,120]
[326926227,1715596404322,-613.91726957,0.00054794,120]
[326926228,1715596404344,-505.45449602,0.00054794,120]
[326926229,1715596404368,-501.18323767,0.00054794,120]
[326926230,1715596404391,-500.72465231,0.00054794,120]
[326926231,1715596404414,-505.03089038,0.00054794,120]
[326926232,1715596404437,-502.52504882,0.00054794,120]
[326926233,1715596404460,-509.23481079,0.00054794,120]
[326926234,1715596404484,-1993.31,0.00054794,120]
[326926235,1715596404508,-258.00351725,0.00054794,120]
[326926236,1715596404532,-625.05,0.00054794,120]
[326926237,1715596404556,-365.55811067,0.00054794,120]
[326926238,1715596404579,-625.08,0.00054794,120]
[326926239,1715596404603,-500.0,0.00054794,120]
[326926240,1715596404627,-500.0,0.00054794,120]
[326926241,1715596404650,-501.13056045,0.00054794,120]
[326926242,1715596404674,-505.51878352,0.00054794,120]
[326926243,1715596404698,-500.0,0.00054794,120]
[326926244,1715596404724,-904.83,0.00054794,120]
[326926245,1715596404747,-500.0,0.00054794,120]
[326926246,1715596404772,-501.98144621,0.00054794,120]
[326926247,1715596404795,-500.0,0.00054794,120]
[326926248,1715596404819,-319.84785717,0.00054794,120]
[326926249,1715596404843,-376.94406611,0.00054794,120]
[326926250,1715596404866,-500.95637056,0.00054794,120]
[326926251,1715596404889,-199.51200651,0.00054794,120]
[326926252,1715596404912,-503.79851171,0.00054794,120]
[326926253,1715596404936,-500.0,0.00054794,30]
[326926254,1715596404960,-302.48599213,0.00054794,7]
[326926255,1715596404989,-509.53175444,0.00054794,120]
[326926256,1715596405012,-500.0,0.00054794,120]
[326926257,1715596405036,-585.15033145,0.00054794,120]
[326926258,1715596405060,-501.77639121,0.00054794,120]
[326926259,1715596405084,-290.95337785,0.00054794,120]
[326926260,1715596405107,-600.0,0.00054794,120]
[326926261,1715596405134,-500.0,0.00054794,120]
[326926262,1715596405158,-500.0,0.00054794,120]
[326926263,1715596405183,-500.0,0.00054794,120]
[326926264,1715596405208,-509.36635538,0.00054794,120]
[326926265,1715596405232,-500.0,0.00054794,120]
[326926266,1715596405256,-500.0,0.00054794,120]
[326926267,1715596405281,-500.0,0.00054794,120]
[326926268,1715596405305,-500.0,0.00054794,120]
[326926269,1715596405328,-616.61,0.00054794,120]
[326926270,1715596405351,-550.18133163,0.00054794,120]
[326926271,1715596405373,-500.0,0.00054794,120]
[326926272,1715596405396,-504.6891372,0.00054794,120]
[326926273,1715596405419,-500.0,0.00054794,120]
[326926274,1715596405442,-500.0,0.00054794,120]
[326926275,1715596405465,-850.19,0.00054794,120]
[326926276,1715596405492,-500.0,0.00054794,120]
[326926277,1715596405516,-506.95589567,0.00054794,120]
[326926278,1715596405539,-293.23985022,0.00054794,120]
[326926279,1715596405680,-505.60749749,0.00054794,120]
[326926280,1715596405705,-1005.11,0.00054794,120]
[326926281,1715596405730,-538.16,0.00054794,120]
[326926282,1715596405754,-500.0,0.00054794,120]
[326926283,1715596405778,-505.89414528,0.00054794,120]
[326926284,1715596405802,-505.5,0.00054794,120]
[326926285,1715596405826,-503.08641816,0.00054794,120]
[326926286,1715596405850,-500.0,0.00054794,120]
[326926287,1715596405875,-507.36029182,0.00054794,120]
[326926288,1715596405898,-500.0,0.00054794,120]
[326926289,1715596405920,-500.0,0.00054794,120]
[326926290,1715596405943,-512.52,0.00054794,120]
[326926291,1715596405966,-500.0,0.00054794,120]
[326926292,1715596405990,-642.17754831,0.00054794,120]
[326926293,1715596406013,-511.31197208,0.00054794,120]
[326926294,1715596406036,-502.3768555,0.00054794,120]
[326926295,1715596406061,-500.0,0.00054794,120]
[326926296,1715596406085,-501.6947926,0.00054794,120]
[326926297,1715596406108,-501.70137009,0.00054794,120]
[326926298,1715596406132,-529.36394622,0.00054794,120]
[326926299,1715596406158,-598.16,0.00054794,120]
[326926300,1715596406181,-500.0,0.00054794,120]
[326926301,1715596406206,-501.16868656,0.00054794,120]
[326926302,1715596406232,-500.0,0.00054794,120]
[326926304,1715596406255,-501.65528711,0.00054794,120]
[326926305,1715596406277,-506.0309178,0.00054794,120]
[326926306,1715596406300,-500.0,0.00054794,120]
[326926307,1715596406323,-500.0,0.00054794,120]
[326926308,1715596406344,-501.30144167,0.00054794,120]
[326926309,1715596406367,-500.0,0.00054794,120]
[326926310,1715596406389,-500.0,0.00054794,120]
[326926311,1715596406411,-500.0,0.00054794,120]
[326926312,1715596406432,-500.0,0.00054794,120]
[326926313,1715596406455,-500.0,0.00054794,120]
[326926314,1715596406478,-500.0,0.00054794,120]
[326926315,1715596406501,-212.81927506,0.00054794,120]
[326926316,1715596406526,-500.0,0.00054794,120]
[326926317,1715596406549,-500.0,0.00054794,120]
[326926318,1715596406573,-500.0,0.00054794,120]
[326926319,1715596406597,-500.0,0.00054794,120]
[326926320,1715596406620,-515.09666033,0.00054794,120]
[326926321,1715596406644,-647.81,0.00054794,120]
[326926322,1715596406667,-500.0,0.00054794,120]
[326926323,1715596406691,-583.63186118,0.00054794,120]
[326926324,1715596406715,-890.56,0.00054794,120]
[326926325,1715596406741,-500.0,0.00054794,120]
[326926326,1715596406764,-500.0,0.00054794,120]
[326926327,1715596406788,-500.0,0.00054794,120]
[326926328,1715596406813,-500.0,0.00054794,120]
[326926329,1715596406837,-500.0,0.00054794,120]
[326926330,1715596406860,-500.0,0.00054794,120]
[326926331,1715596406882,-512.46664007,0.00054794,120]